[Event "Live Chess"]
[Site "Chess.com"]
[Date "2024.06.02"]
[Round "-"]
[White "NottheBishopSacrifice"]
[Black "friarnator"]
[Result "0-1"]
[WhiteElo "2312"]
[BlackElo "2198"]
[TimeControl "300"]
[EndTime "1:54:58 PDT"]
[Termination "friarnator won by checkmate"]

1. d4 {[%clk 0:04:58.2]} 1... Nf6 {[%clk 0:04:58.4]} 2. c4 {[%clk 0:04:56.9]}
2... g6 {[%clk 0:04:55.3]} 3. g3 {[%clk 0:04:54.8]} 3... Bg7 {[%clk 0:04:54.8]}
4. Bg2 {[%clk 0:04:54.4]} 4... O-O {[%clk 0:04:54.5]} 5. Nc3 {[%clk 0:04:53.6]}
5... d6 {[%clk 0:04:53.9]} 6. Nf3 {[%clk 0:04:51.9]} 6... Nbd7 {[%clk
0:04:53.2]} 7. O-O {[%clk 0:04:51]} 7... e5 {[%clk 0:04:51.7]} 8. e4 {[%clk
0:04:50.6]} 8... exd4 {[%clk 0:04:44.3]} 9. Nxd4 {[%clk 0:04:50.5]} 9... Ne5
{[%clk 0:04:43.4]} 10. b3 {[%clk 0:04:48.4]} 10... Re8 {[%clk 0:04:41.6]} 11.
Re1 {[%clk 0:04:46.3]} 11... a6 {[%clk 0:04:39.7]} 12. Bb2 {[%clk 0:04:44.7]}
12... Rb8 {[%clk 0:04:38.4]} 13. Nd5 {[%clk 0:04:43.7]} 13... c5 {[%clk
0:04:25.6]} 14. Nf3 {[%clk 0:04:38.9]} 14... Nxd5 {[%clk 0:04:24.4]} 15. Nxe5
{[%clk 0:04:31.4]} 15... Nb4 {[%clk 0:03:40.7]} 16. a3 {[%clk 0:04:03.5]} 16...
dxe5 {[%clk 0:03:28.1]} 17. axb4 {[%clk 0:04:00.5]} 17... cxb4 {[%clk
0:03:24.7]} 18. Qc2 {[%clk 0:03:57]} 18... Be6 {[%clk 0:03:16]} 19. Red1 {[%clk
0:03:55.1]} 19... Qc7 {[%clk 0:03:12.1]} 20. Qd2 {[%clk 0:03:53.9]} 20... Qc5
{[%clk 0:03:07.4]} 21. Qd6 {[%clk 0:03:48.7]} 21... Qxd6 {[%clk 0:03:04]} 22.
Rxd6 {[%clk 0:03:48.6]} 22... Red8 {[%clk 0:03:00.2]} 23. Rad1 {[%clk
0:03:46.2]} 23... Rxd6 {[%clk 0:02:57.5]} 24. Rxd6 {[%clk 0:03:46.1]} 24... Bf8
{[%clk 0:02:53.4]} 25. Rd2 {[%clk 0:03:40]} 25... f6 {[%clk 0:02:48.4]} 26. f4
{[%clk 0:03:38.2]} 26... Bc5+ {[%clk 0:02:44]} 27. Kf1 {[%clk 0:03:37.7]} 27...
exf4 {[%clk 0:02:35.4]} 28. gxf4 {[%clk 0:03:37.6]} 28... Kf7 {[%clk 0:02:34]}
29. e5 {[%clk 0:03:33.7]} 29... Be3 {[%clk 0:02:24.4]} 30. Rd3 {[%clk
0:03:30.3]} 30... Bxf4 {[%clk 0:02:20.8]} 31. exf6 {[%clk 0:03:29.1]} 31... Bf5
{[%clk 0:02:12.5]} 32. Bd5+ {[%clk 0:03:15]} 32... Be6 {[%clk 0:02:07]} 33.
Bxe6+ {[%clk 0:03:13]} 33... Kxe6 {[%clk 0:02:06.9]} 34. Kg2 {[%clk 0:03:06.8]}
34... Bg5 {[%clk 0:01:59.7]} 35. Rh3 {[%clk 0:03:03.2]} 35... h6 {[%clk
0:01:45]} 36. Rg3 {[%clk 0:02:54.2]} 36... Rd8 {[%clk 0:01:41.7]} 37. Kh3 {[%clk
0:02:48.8]} 37... Kf7 {[%clk 0:01:29.1]} 38. Rf3 {[%clk 0:02:42.1]} 38... Rd6
{[%clk 0:01:24.5]} 39. Be5 {[%clk 0:02:40.1]} 39... Re6 {[%clk 0:01:17.7]} 40.
Bd4 {[%clk 0:02:39.4]} 40... Bxf6 {[%clk 0:01:15.5]} 41. Bc5 {[%clk 0:02:38.9]}
41... a5 {[%clk 0:01:07.4]} 42. Rd3 {[%clk 0:02:37.5]} 42... Be7 {[%clk
0:00:56.9]} 43. Be3 {[%clk 0:02:33.3]} 43... g5 {[%clk 0:00:51.7]} 44. Kg4
{[%clk 0:02:31.2]} 44... Kg6 {[%clk 0:00:49.9]} 45. Kf3 {[%clk 0:02:29.5]} 45...
h5 {[%clk 0:00:48.8]} 46. h3 {[%clk 0:02:26.2]} 46... Rf6+ {[%clk 0:00:43.9]}
47. Kg2 {[%clk 0:02:23.6]} 47... g4 {[%clk 0:00:43.3]} 48. hxg4 {[%clk 0:02:22]}
48... hxg4 {[%clk 0:00:43.2]} 49. Rd5 {[%clk 0:02:20.8]} 49... b6 {[%clk
0:00:40.8]} 50. Rg5+ {[%clk 0:02:18.6]} 50... Kf7 {[%clk 0:00:38.8]} 51. Rxg4
{[%clk 0:02:17.4]} 51... Bc5 {[%clk 0:00:36.4]} 52. Bxc5 {[%clk 0:02:13.7]}
52... bxc5 {[%clk 0:00:36.3]} 53. Rg5 {[%clk 0:02:12.8]} 53... Rg6 {[%clk
0:00:35]} 54. Rxg6 {[%clk 0:02:07]} 54... Kxg6 {[%clk 0:00:34.9]} 55. Kf2 {[%clk
0:02:05.2]} 55... a4 {[%clk 0:00:28.7]} 56. Ke2 {[%clk 0:01:49.1]} 56... a3
{[%clk 0:00:25.3]} 57. Kd2 {[%clk 0:01:47]} 57... a2 {[%clk 0:00:24.6]} 58. Kc2
{[%clk 0:01:45.9]} 58... a1=Q {[%clk 0:00:24.5]} 59. Kd3 {[%clk 0:01:45.2]}
59... Qc3+ {[%clk 0:00:24.4]} 60. Ke2 {[%clk 0:01:44.3]} 60... Qxb3 {[%clk
0:00:24.3]} 61. Kd2 {[%clk 0:01:43.6]} 61... Qxc4 {[%clk 0:00:24.2]} 62. Kd1
{[%clk 0:01:42]} 62... Qc3 {[%clk 0:00:24.1]} 63. Ke2 {[%clk 0:01:40.9]} 63...
b3 {[%clk 0:00:24]} 64. Kf2 {[%clk 0:01:40.3]} 64... b2 {[%clk 0:00:23.9]} 65.
Kg2 {[%clk 0:01:40.1]} 65... b1=Q {[%clk 0:00:23]} 66. Kh2 {[%clk 0:01:40]}
66... Qbb2+ {[%clk 0:00:22.9]} 67. Kh1 {[%clk 0:01:39.3]} 67... Qcc1# {[%clk
0:00:22.8]} 0-1

[Event "Live Chess"]
[Site "Chess.com"]
[Date "2024.06.02"]
[Round "-"]
[White "JanMur7"]
[Black "Duke_of_Bebington"]
[Result "1-0"]
[WhiteElo "2274"]
[BlackElo "1664"]
[TimeControl "300"]
[EndTime "1:55:12 PDT"]
[Termination "JanMur7 won by checkmate"]

1. c4 {[%clk 0:04:58.4]} 1... c6 {[%clk 0:04:58.8]} 2. Nc3 {[%clk 0:04:57.2]}
2... d5 {[%clk 0:04:57.6]} 3. d4 {[%clk 0:04:55.8]} 3... e5 {[%clk 0:04:56.2]}
4. cxd5 {[%clk 0:04:51.5]} 4... cxd5 {[%clk 0:04:54.9]} 5. e4 {[%clk 0:04:45.2]}
5... dxe4 {[%clk 0:04:46.3]} 6. dxe5 {[%clk 0:04:39.3]} 6... Qxd1+ {[%clk
0:04:40.9]} 7. Kxd1 {[%clk 0:04:37.4]} 7... Bf5 {[%clk 0:04:35.9]} 8. Nb5 {[%clk
0:04:33.6]} 8... Na6 {[%clk 0:04:33.8]} 9. Be3 {[%clk 0:04:31]} 9... Rd8+ {[%clk
0:04:20.1]} 10. Ke1 {[%clk 0:04:20.5]} 10... Bb4+ {[%clk 0:04:18.1]} 11. Ke2
{[%clk 0:04:15.4]} 11... Bg4+ {[%clk 0:04:11.7]} 12. f3 {[%clk 0:04:14.4]} 12...
exf3+ {[%clk 0:04:10.8]} 13. gxf3 {[%clk 0:04:13.4]} 13... Bf5 {[%clk
0:04:04.4]} 14. Kf2 {[%clk 0:04:02.9]} 14... Ne7 {[%clk 0:03:43.9]} 15. Bh3
{[%clk 0:03:47.5]} 15... O-O {[%clk 0:03:38.2]} 16. a3 {[%clk 0:03:26.7]} 16...
Bc5 {[%clk 0:03:31.2]} 17. Bxc5 {[%clk 0:03:19.4]} 17... Nxc5 {[%clk 0:03:31.1]}
18. Nd6 {[%clk 0:03:06.3]} 18... Nd3+ {[%clk 0:03:24.7]} 19. Kg3 {[%clk
0:03:05.2]} 19... Nxe5 {[%clk 0:03:22.5]} 20. Nxf5 {[%clk 0:03:02.2]} 20...
Nxf5+ {[%clk 0:03:19.4]} 21. Bxf5 {[%clk 0:03:02.1]} 21... g6 {[%clk 0:03:16.8]}
22. Be4 {[%clk 0:03:00.8]} 22... f5 {[%clk 0:03:14.4]} 23. Bxb7 {[%clk
0:02:59.3]} 23... h5 {[%clk 0:03:13.1]} 24. h4 {[%clk 0:02:57.5]} 24... Rb8
{[%clk 0:03:06.5]} 25. Bd5+ {[%clk 0:02:55.4]} 25... Kg7 {[%clk 0:03:05.6]} 26.
b4 {[%clk 0:02:51.4]} 26... Rfd8 {[%clk 0:03:04.9]} 27. Rd1 {[%clk 0:02:47.2]}
27... Rdc8 {[%clk 0:02:48.3]} 28. Nh3 {[%clk 0:02:37]} 28... Rc3 {[%clk
0:02:42.3]} 29. Ng5 {[%clk 0:02:31.3]} 29... Rxa3 {[%clk 0:02:36.1]} 30. Rc1
{[%clk 0:02:29.5]} 30... Kf6 {[%clk 0:02:31.1]} 31. Rc7 {[%clk 0:02:22.1]} 31...
Rxb4 {[%clk 0:02:27.8]} 32. Nh7# {[%clk 0:02:19.8]} 1-0

[Event "Live Chess"]
[Site "Chess.com"]
[Date "2024.06.02"]
[Round "-"]
[White "SergiiA"]
[Black "KeithArkell"]
[Result "0-1"]
[WhiteElo "1537"]
[BlackElo "2400"]
[TimeControl "300"]
[EndTime "1:55:14 PDT"]
[Termination "KeithArkell won by resignation"]

1. c4 {[%clk 0:04:53.8]} 1... c5 {[%clk 0:04:58.6]} 2. Nc3 {[%clk 0:04:53.3]}
2... Nc6 {[%clk 0:04:58.1]} 3. e4 {[%clk 0:04:52.7]} 3... g6 {[%clk 0:04:57.2]}
4. g3 {[%clk 0:04:51.9]} 4... Bg7 {[%clk 0:04:56.8]} 5. Bg2 {[%clk 0:04:51.5]}
5... e6 {[%clk 0:04:56.5]} 6. Nge2 {[%clk 0:04:51]} 6... Nge7 {[%clk 0:04:56.3]}
7. O-O {[%clk 0:04:50.3]} 7... O-O {[%clk 0:04:56]} 8. d3 {[%clk 0:04:47.7]}
8... a6 {[%clk 0:04:55.5]} 9. h3 {[%clk 0:04:46.6]} 9... b5 {[%clk 0:04:54.7]}
10. cxb5 {[%clk 0:04:36.9]} 10... axb5 {[%clk 0:04:53.4]} 11. Nxb5 {[%clk
0:04:36.3]} 11... Ba6 {[%clk 0:04:52.6]} 12. Nbc3 {[%clk 0:04:34.7]} 12... Nb4
{[%clk 0:04:50.2]} 13. d4 {[%clk 0:04:28.6]} 13... cxd4 {[%clk 0:04:46.6]} 14.
Nxd4 {[%clk 0:04:28]} 14... Bxf1 {[%clk 0:04:45.7]} 15. Qxf1 {[%clk 0:04:22.1]}
15... Bxd4 {[%clk 0:04:44.3]} 0-1

[Event "Live Chess"]
[Site "Chess.com"]
[Date "2024.06.02"]
[Round "-"]
[White "TheSmoulderingMaster"]
[Black "matt1979"]
[Result "1-0"]
[WhiteElo "1780"]
[BlackElo "1406"]
[TimeControl "300"]
[EndTime "1:55:47 PDT"]
[Termination "TheSmoulderingMaster won by resignation"]

1. e4 {[%clk 0:04:57.5]} 1... d6 {[%clk 0:04:58.1]} 2. d4 {[%clk 0:04:56]} 2...
Nf6 {[%clk 0:04:56.7]} 3. Nc3 {[%clk 0:04:55.3]} 3... Nbd7 {[%clk 0:04:55.6]} 4.
Nf3 {[%clk 0:04:53.5]} 4... e5 {[%clk 0:04:54.2]} 5. Bc4 {[%clk 0:04:51.4]} 5...
Be7 {[%clk 0:04:49]} 6. O-O {[%clk 0:04:49.9]} 6... c6 {[%clk 0:04:48]} 7. Bg5
{[%clk 0:04:48.4]} 7... Qc7 {[%clk 0:04:46]} 8. Re1 {[%clk 0:04:47.6]} 8... h6
{[%clk 0:04:44.3]} 9. Bh4 {[%clk 0:04:46.2]} 9... b6 {[%clk 0:04:37.6]} 10. d5
{[%clk 0:04:44.4]} 10... b5 {[%clk 0:04:25.2]} 11. dxc6 {[%clk 0:04:41.9]} 11...
Qxc6 {[%clk 0:04:21.7]} 12. Bxb5 {[%clk 0:04:40.1]} 12... Qc7 {[%clk 0:04:19.2]}
13. Nd5 {[%clk 0:04:35]} 13... Nxd5 {[%clk 0:04:16.4]} 14. Qxd5 {[%clk
0:04:32.4]} 14... Rb8 {[%clk 0:04:10.3]} 15. Bxe7 {[%clk 0:04:26.1]} 15... Kxe7
{[%clk 0:04:07.6]} 16. Bxd7 {[%clk 0:04:20.5]} 16... Bxd7 {[%clk 0:04:04.6]} 17.
Nh4 {[%clk 0:04:11.2]} 17... g6 {[%clk 0:03:56.3]} 18. Rad1 {[%clk 0:04:07.5]}
18... Be6 {[%clk 0:03:52.4]} 19. Qd2 {[%clk 0:04:01.3]} 19... Rxb2 {[%clk
0:03:46.8]} 20. Nf3 {[%clk 0:03:58.9]} 20... Rxc2 {[%clk 0:03:43.5]} 21. Qb4
{[%clk 0:03:55.6]} 21... f6 {[%clk 0:03:35.5]} 22. h3 {[%clk 0:03:49.5]} 22...
Rc8 {[%clk 0:03:24]} 23. Nd2 {[%clk 0:03:41]} 23... Rc1 {[%clk 0:03:21.1]} 24.
Rxc1 {[%clk 0:03:37.3]} 24... Qxc1 {[%clk 0:03:15.5]} 25. Rxc1 {[%clk 0:03:36]}
25... Rxc1+ {[%clk 0:03:14.6]} 26. Kh2 {[%clk 0:03:33.5]} 1-0

[Event "Live Chess"]
[Site "Chess.com"]
[Date "2024.06.02"]
[Round "-"]
[White "Keithdfg"]
[Black "booktrunk"]
[Result "1-0"]
[WhiteElo "1763"]
[BlackElo "1510"]
[TimeControl "300"]
[EndTime "1:55:58 PDT"]
[Termination "Keithdfg won by resignation"]

1. Nf3 {[%clk 0:04:50.7]} 1... b6 {[%clk 0:04:58.1]} 2. d3 {[%clk 0:04:50.6]}
2... Bb7 {[%clk 0:04:56.9]} 3. Nbd2 {[%clk 0:04:49.4]} 3... c5 {[%clk
0:04:52.8]} 4. e4 {[%clk 0:04:49.3]} 4... e6 {[%clk 0:04:50.1]} 5. Be2 {[%clk
0:04:49.2]} 5... h6 {[%clk 0:04:47.9]} 6. O-O {[%clk 0:04:49.1]} 6... Nf6 {[%clk
0:04:45.4]} 7. c3 {[%clk 0:04:49]} 7... Be7 {[%clk 0:04:42.7]} 8. a4 {[%clk
0:04:48.9]} 8... d6 {[%clk 0:04:41.6]} 9. a5 {[%clk 0:04:46.1]} 9... bxa5 {[%clk
0:04:40.2]} 10. Qa4+ {[%clk 0:04:44.1]} 10... Bc6 {[%clk 0:04:33.3]} 11. Qxa5
{[%clk 0:04:42.2]} 11... Qxa5 {[%clk 0:04:32]} 12. Rxa5 {[%clk 0:04:41.2]} 12...
O-O {[%clk 0:04:29.7]} 13. Nc4 {[%clk 0:04:39.2]} 13... Bd8 {[%clk 0:04:24.9]}
14. Ra1 {[%clk 0:04:36.8]} 14... d5 {[%clk 0:04:23.1]} 15. Nce5 {[%clk
0:04:34.2]} 15... dxe4 {[%clk 0:04:19.6]} 16. Nxc6 {[%clk 0:04:32.6]} 16... Nxc6
{[%clk 0:04:17.6]} 17. dxe4 {[%clk 0:04:27.9]} 17... Nxe4 {[%clk 0:04:15.5]} 18.
Be3 {[%clk 0:04:24.2]} 18... Be7 {[%clk 0:04:09.7]} 19. Ra4 {[%clk 0:04:20.1]}
19... Nf6 {[%clk 0:04:06.4]} 20. Rfa1 {[%clk 0:04:14.1]} 20... a5 {[%clk
0:04:02.6]} 21. Bb5 {[%clk 0:04:05.8]} 21... Rfc8 {[%clk 0:04:01.9]} 22. Bxc6
{[%clk 0:04:00.8]} 22... Rxc6 {[%clk 0:04:00.1]} 23. Ne5 {[%clk 0:03:59.2]}
23... Rca6 {[%clk 0:03:52]} 24. Nc4 {[%clk 0:03:57.4]} 24... Nd5 {[%clk
0:03:48.5]} 25. Rxa5 {[%clk 0:03:48.7]} 25... Rxa5 {[%clk 0:03:46.3]} 26. Rxa5
{[%clk 0:03:47.4]} 26... Rxa5 {[%clk 0:03:44.2]} 27. Nxa5 {[%clk 0:03:46.5]}
27... Nxe3 {[%clk 0:03:43.6]} 28. fxe3 {[%clk 0:03:45]} 28... Bd6 {[%clk
0:03:42.3]} 29. h3 {[%clk 0:03:42.3]} 29... Kf8 {[%clk 0:03:41.2]} 30. Nc4
{[%clk 0:03:41]} 30... Bc7 {[%clk 0:03:36.7]} 31. Kf2 {[%clk 0:03:37.6]} 31...
Ke7 {[%clk 0:03:35.8]} 32. e4 {[%clk 0:03:31.6]} 32... g5 {[%clk 0:03:35.7]} 33.
Kf3 {[%clk 0:03:30.2]} 33... f5 {[%clk 0:03:32.9]} 34. g4 {[%clk 0:03:26.1]}
34... fxg4+ {[%clk 0:03:26.5]} 35. hxg4 {[%clk 0:03:21.9]} 35... Kf6 {[%clk
0:03:24]} 36. b4 {[%clk 0:03:12.5]} 36... cxb4 {[%clk 0:03:21]} 37. cxb4 {[%clk
0:03:10.2]} 37... Kg6 {[%clk 0:03:17.3]} 38. b5 {[%clk 0:03:08.6]} 38... h5
{[%clk 0:03:15.5]} 39. b6 {[%clk 0:03:07]} 39... Bb8 {[%clk 0:03:13.7]} 40. b7
{[%clk 0:02:55]} 40... hxg4+ {[%clk 0:03:12.1]} 41. Kxg4 {[%clk 0:02:53.6]}
41... Kf6 {[%clk 0:03:11.5]} 42. Kh5 {[%clk 0:02:39.7]} 42... e5 {[%clk
0:03:07.3]} 43. Kg4 {[%clk 0:02:38.1]} 43... Kg6 {[%clk 0:03:01]} 44. Na5 {[%clk
0:02:33.3]} 44... Kf6 {[%clk 0:02:58.7]} 45. Nc6 {[%clk 0:02:32.1]} 45... Bc7
{[%clk 0:02:56.1]} 46. b8=Q {[%clk 0:02:29.2]} 46... Bxb8 {[%clk 0:02:53.9]} 47.
Nxb8 {[%clk 0:02:29.1]} 47... Ke6 {[%clk 0:02:52.6]} 48. Kxg5 {[%clk 0:02:26.5]}
48... Kd6 {[%clk 0:02:52.5]} 49. Kf5 {[%clk 0:02:25.3]} 49... Kc5 {[%clk
0:02:52.4]} 50. Nd7+ {[%clk 0:02:22.8]} 50... Kd4 {[%clk 0:02:52.3]} 51. Nxe5
{[%clk 0:02:22.1]} 51... Kc5 {[%clk 0:02:49.5]} 52. Ng6 {[%clk 0:02:22]} 52...
Kd6 {[%clk 0:02:48.9]} 53. e5+ {[%clk 0:02:21.7]} 53... Kd7 {[%clk 0:02:47.6]}
54. Kf6 {[%clk 0:02:20.8]} 54... Ke8 {[%clk 0:02:46.9]} 55. e6 {[%clk
0:02:19.2]} 55... Kd8 {[%clk 0:02:45.5]} 56. Kf7 {[%clk 0:02:19.1]} 1-0

[Event "Live Chess"]
[Site "Chess.com"]
[Date "2024.06.02"]
[Round "-"]
[White "TigerTank70"]
[Black "Bradfield133"]
[Result "1-0"]
[WhiteElo "2220"]
[BlackElo "1880"]
[TimeControl "300"]
[EndTime "1:56:03 PDT"]
[Termination "TigerTank70 won on time"]

1. e4 {[%clk 0:04:56.6]} 1... c5 {[%clk 0:04:58.3]} 2. d4 {[%clk 0:04:55.1]}
2... cxd4 {[%clk 0:04:56.5]} 3. c3 {[%clk 0:04:53.8]} 3... dxc3 {[%clk
0:04:55.4]} 4. Nxc3 {[%clk 0:04:52.5]} 4... Nc6 {[%clk 0:04:53.9]} 5. Nf3 {[%clk
0:04:48.9]} 5... d6 {[%clk 0:04:52.9]} 6. Bc4 {[%clk 0:04:46.2]} 6... e6 {[%clk
0:04:51.8]} 7. Qe2 {[%clk 0:04:44.3]} 7... a6 {[%clk 0:04:49.6]} 8. O-O {[%clk
0:04:42.2]} 8... b5 {[%clk 0:04:47.8]} 9. Bb3 {[%clk 0:04:38]} 9... Ra7 {[%clk
0:04:46.8]} 10. Rd1 {[%clk 0:04:09.4]} 10... Rd7 {[%clk 0:04:43.9]} 11. Bg5
{[%clk 0:04:06.5]} 11... Be7 {[%clk 0:04:16.7]} 12. Bxe7 {[%clk 0:04:02.9]}
12... Qxe7 {[%clk 0:04:15.1]} 13. Rac1 {[%clk 0:04:02.7]} 13... Bb7 {[%clk
0:04:12.8]} 14. Bc2 {[%clk 0:03:59.6]} 14... Nf6 {[%clk 0:04:07.3]} 15. Bb1
{[%clk 0:03:58.7]} 15... O-O {[%clk 0:04:04.5]} 16. h3 {[%clk 0:03:55.8]} 16...
Rfd8 {[%clk 0:03:53.1]} 17. a3 {[%clk 0:03:43.4]} 17... Ne5 {[%clk 0:03:47.3]}
18. Nxe5 {[%clk 0:03:40]} 18... dxe5 {[%clk 0:03:45.5]} 19. Rxd7 {[%clk
0:03:35.5]} 19... Rxd7 {[%clk 0:03:43.9]} 20. Bc2 {[%clk 0:03:28.9]} 20... b4
{[%clk 0:03:31]} 21. axb4 {[%clk 0:03:19.3]} 21... Qxb4 {[%clk 0:03:29.1]} 22.
Ba4 {[%clk 0:03:18]} 22... Rc7 {[%clk 0:03:20.1]} 23. f3 {[%clk 0:03:14.5]}
23... g6 {[%clk 0:02:40.2]} 24. Qd2 {[%clk 0:03:03.1]} 24... Qd4+ {[%clk
0:02:26.2]} 25. Qf2 {[%clk 0:03:00]} 25... Rxc3 {[%clk 0:02:15.3]} 26. bxc3
{[%clk 0:02:51.1]} 26... Qxa4 {[%clk 0:02:13.5]} 27. c4 {[%clk 0:02:50.2]} 27...
Qa3 {[%clk 0:01:45.9]} 28. Rb1 {[%clk 0:02:42.1]} 28... Bc6 {[%clk 0:01:31.9]}
29. Qb6 {[%clk 0:02:40.7]} 29... Qa4 {[%clk 0:01:22.2]} 30. Rb4 {[%clk
0:02:31.6]} 30... Qa1+ {[%clk 0:00:52.1]} 31. Kh2 {[%clk 0:02:27.5]} 31... Be8
{[%clk 0:00:50.8]} 32. c5 {[%clk 0:02:18.5]} 32... Qc1 {[%clk 0:00:44.3]} 33.
Rb1 {[%clk 0:01:57.6]} 33... Qf4+ {[%clk 0:00:38]} 34. Kh1 {[%clk 0:01:56.2]}
34... Nh5 {[%clk 0:00:35]} 35. c6 {[%clk 0:01:46.4]} 35... Ng3+ {[%clk
0:00:31.5]} 36. Kg1 {[%clk 0:01:44.1]} 36... Bxc6 {[%clk 0:00:21.8]} 37. Qxc6
{[%clk 0:01:30.4]} 37... Qe3+ {[%clk 0:00:06]} 38. Kh2 {[%clk 0:01:27.9]} 38...
Ne2 {[%clk 0:00:03.6]} 39. Qc2 {[%clk 0:01:05.3]} 39... Qf4+ {[%clk 0:00:02.4]}
40. Kh1 {[%clk 0:01:03.8]} 40... Ng3+ {[%clk 0:00:00.2]} 41. Kg1 {[%clk
0:01:03]} 1-0

[Event "Live Chess"]
[Site "Chess.com"]
[Date "2024.06.02"]
[Round "-"]
[White "RichardABates"]
[Black "uselessduffer"]
[Result "0-1"]
[WhiteElo "2360"]
[BlackElo "2403"]
[TimeControl "300"]
[EndTime "1:56:04 PDT"]
[Termination "uselessduffer won by resignation"]

1. d4 {[%clk 0:04:59.2]} 1... Nf6 {[%clk 0:04:57.6]} 2. Nf3 {[%clk 0:04:56.7]}
2... e6 {[%clk 0:04:56.9]} 3. c4 {[%clk 0:04:54.6]} 3... Nc6 {[%clk 0:04:56.5]}
4. Nc3 {[%clk 0:04:52.2]} 4... Bb4 {[%clk 0:04:54.5]} 5. Qc2 {[%clk 0:04:50]}
5... d6 {[%clk 0:04:45.1]} 6. Bd2 {[%clk 0:04:44.9]} 6... O-O {[%clk 0:04:41.1]}
7. a3 {[%clk 0:04:43.5]} 7... Bxc3 {[%clk 0:04:31.1]} 8. Bxc3 {[%clk 0:04:42.1]}
8... Re8 {[%clk 0:04:23.2]} 9. e4 {[%clk 0:04:40.4]} 9... e5 {[%clk 0:04:20]}
10. dxe5 {[%clk 0:04:36.9]} 10... dxe5 {[%clk 0:04:06.4]} 11. Rd1 {[%clk
0:04:33.4]} 11... Qe7 {[%clk 0:04:00.7]} 12. Be2 {[%clk 0:04:31.2]} 12... Bg4
{[%clk 0:03:53.1]} 13. O-O {[%clk 0:04:29.7]} 13... Rad8 {[%clk 0:03:33]} 14. h3
{[%clk 0:04:18]} 14... Bxf3 {[%clk 0:03:22.1]} 15. Bxf3 {[%clk 0:04:16.1]} 15...
Nd4 {[%clk 0:03:20.8]} 16. Bxd4 {[%clk 0:04:14.5]} 16... Rxd4 {[%clk 0:03:12.3]}
17. c5 {[%clk 0:04:05.7]} 17... Red8 {[%clk 0:03:08.5]} 18. b4 {[%clk
0:04:02.5]} 18... c6 {[%clk 0:02:50.5]} 19. Rxd4 {[%clk 0:03:55.5]} 19... Rxd4
{[%clk 0:02:47.1]} 20. Rd1 {[%clk 0:03:53.4]} 20... Qd8 {[%clk 0:02:41.3]} 21.
Rxd4 {[%clk 0:03:49.6]} 21... Qxd4 {[%clk 0:02:34.7]} 22. g3 {[%clk 0:03:47.9]}
22... Kf8 {[%clk 0:02:27.8]} 23. Kg2 {[%clk 0:03:46.3]} 23... Ke7 {[%clk
0:02:26.1]} 24. Qb1 {[%clk 0:03:30.7]} 24... Ne8 {[%clk 0:02:02.5]} 25. a4
{[%clk 0:03:25.8]} 25... Nc7 {[%clk 0:01:59.3]} 26. Bg4 {[%clk 0:03:14.2]} 26...
Ne6 {[%clk 0:01:31.7]} 27. Bxe6 {[%clk 0:03:11.4]} 27... Kxe6 {[%clk 0:01:31.6]}
28. Qb3+ {[%clk 0:03:06.6]} 28... Ke7 {[%clk 0:01:30.2]} 29. Kf3 {[%clk
0:03:05.1]} 29... g6 {[%clk 0:01:26.2]} 30. g4 {[%clk 0:03:02.6]} 30... h6
{[%clk 0:01:18.1]} 31. h4 {[%clk 0:02:51.9]} 31... a6 {[%clk 0:01:14]} 32. g5
{[%clk 0:02:45.4]} 32... hxg5 {[%clk 0:01:06]} 33. hxg5 {[%clk 0:02:44.3]} 33...
Qd2 {[%clk 0:01:02.1]} 34. Qc4 {[%clk 0:02:37.1]} 34... Qxg5 {[%clk 0:00:55.3]}
35. Qd3 {[%clk 0:02:32.2]} 35... Qh5+ {[%clk 0:00:49.4]} 36. Kg3 {[%clk
0:02:28.7]} 36... Qg5+ {[%clk 0:00:48.1]} 37. Kf3 {[%clk 0:02:27.5]} 37... Qf6+
{[%clk 0:00:46.4]} 38. Ke2 {[%clk 0:02:16]} 38... Qe6 {[%clk 0:00:44.3]} 39. b5
{[%clk 0:02:12.5]} 39... Qd7 {[%clk 0:00:36.6]} 40. Qxd7+ {[%clk 0:02:06]} 40...
Kxd7 {[%clk 0:00:35.6]} 41. bxc6+ {[%clk 0:02:04.6]} 41... Kxc6 {[%clk
0:00:33.9]} 0-1

[Event "Live Chess"]
[Site "Chess.com"]
[Date "2024.06.02"]
[Round "-"]
[White "AlanBstard10"]
[Black "80Times"]
[Result "1/2-1/2"]
[WhiteElo "1221"]
[BlackElo "1886"]
[TimeControl "300"]
[EndTime "1:56:05 PDT"]
[Termination "Game drawn by agreement"]

1. b4 {[%clk 0:04:57.1]} 1... e6 {[%clk 0:04:51.5]} 2. Bb2 {[%clk 0:04:55.8]}
2... f5 {[%clk 0:04:50.7]} 3. a3 {[%clk 0:04:52.6]} 3... Nf6 {[%clk 0:04:49.9]}
4. e3 {[%clk 0:04:52.1]} 4... d5 {[%clk 0:04:49]} 5. Be2 {[%clk 0:04:51.5]} 5...
Bd6 {[%clk 0:04:47.8]} 6. c4 {[%clk 0:04:50.6]} 6... c6 {[%clk 0:04:47.3]} 7.
cxd5 {[%clk 0:04:49.6]} 7... cxd5 {[%clk 0:04:46.3]} 8. Nf3 {[%clk 0:04:49.1]}
8... Nbd7 {[%clk 0:04:45.8]} 9. O-O {[%clk 0:04:46.3]} 9... O-O {[%clk
0:04:43.6]} 10. d3 {[%clk 0:04:45.9]} 10... a6 {[%clk 0:04:29.6]} 11. Nbd2
{[%clk 0:04:45.4]} 11... b5 {[%clk 0:04:25]} 12. h3 {[%clk 0:04:42.5]} 12... Bb7
{[%clk 0:04:24.2]} 13. Rc1 {[%clk 0:04:38.8]} 13... a5 {[%clk 0:04:12.4]} 14.
bxa5 {[%clk 0:04:36.7]} 14... Rxa5 {[%clk 0:03:51.1]} 15. Nb3 {[%clk 0:04:31.8]}
15... Ra4 {[%clk 0:03:48.3]} 16. Nbd4 {[%clk 0:04:25.5]} 16... Bxa3 {[%clk
0:03:11.3]} 17. Bxa3 {[%clk 0:04:19.9]} 17... Rxa3 {[%clk 0:03:07.9]} 18. Nxb5
{[%clk 0:04:18.3]} 18... Ra2 {[%clk 0:03:03.4]} 19. Nd6 {[%clk 0:04:13]} 19...
Ba6 {[%clk 0:02:52.5]} 20. Rc2 {[%clk 0:04:03.9]} 20... Qa5 {[%clk 0:02:45.1]}
21. Rxa2 {[%clk 0:04:02.4]} 21... Qxa2 {[%clk 0:02:43.2]} 22. Re1 {[%clk
0:03:54.3]} 22... Rb8 {[%clk 0:02:39.4]} 23. Kh2 {[%clk 0:03:52.2]} 23... Rb2
{[%clk 0:02:37.5]} 24. Nd4 {[%clk 0:03:48.7]} 24... Nc5 {[%clk 0:02:22.5]} 25.
Qc1 {[%clk 0:03:41.1]} 25... Nxd3 {[%clk 0:02:05.1]} 26. Bxd3 {[%clk 0:03:34.2]}
26... Rxf2 {[%clk 0:02:02.5]} 27. Rg1 {[%clk 0:02:52.6]} 27... h5 {[%clk
0:01:27.9]} 28. Bxa6 {[%clk 0:02:49.4]} 28... Qxa6 {[%clk 0:01:25.7]} 29. Qc8+
{[%clk 0:02:44.4]} 29... Qxc8 {[%clk 0:01:23.2]} 30. Nxc8 {[%clk 0:02:43.6]}
30... e5 {[%clk 0:01:19]} 1/2-1/2